[Event "16th EWICC 2015"]
[Site "Kutaisi"]
[Date "2015.06.02"]
[Round "6"]
[White "Ibrahimova, Sabina"]
[Black "Jalaghonia, Nino"]
[Result "1-0"]
[ECO "E15"]
[WhiteElo "2272"]
[BlackElo "1865"]
[Annotator "Robot 11"]
[PlyCount "69"]
[EventDate "2015.??.??"]
[EventCountry "GEO"]
[TimeControl "900+10"]

1. d4 {[%emt 0:00:14]} Nf6 {[%emt 0:00:02]} 2. c4 {[%emt 0:00:03]} e6 {[%emt 0:
00:01]} 3. Nf3 {[%emt 0:00:09]} b6 {[%emt 0:00:21]} 4. g3 {[%emt 0:00:02]} Bb4+
{[%emt 0:00:36]} 5. Nbd2 {[%emt 0:00:25]} Bb7 {[%emt 0:00:22]} 6. Bg2 {[%emt 0:
00:02]} O-O {[%emt 0:00:30]} 7. O-O {[%emt 0:00:01]} d5 {[%emt 0:00:35]} 8. Ne5
{[%emt 0:00:25]} Nbd7 {[%emt 0:00:15]} 9. Ndf3 {[%emt 0:01:30]} Bd6 {[%emt 0:
02:51]} 10. Bg5 {[%emt 0:01:05]} h6 {[%emt 0:00:06]} 11. Nxd7 {[%emt 0:01:15]}
Qxd7 {[%emt 0:00:01]} 12. Bxf6 {[%emt 0:00:16]} gxf6 {[%emt 0:00:01]} 13. Qc2 {
[%emt 0:00:34]} Qe7 {[%emt 0:04:21]} 14. Nh4 {[%emt 0:02:02]} c6 {[%emt 0:00:
15]} 15. e4 {[%emt 0:00:29]} dxc4 {[%emt 0:00:38]} 16. Qxc4 {[%emt 0:00:34]} a5
{[%emt 0:00:16]} 17. Rfe1 {[%emt 0:00:10]} Bb4 {[%emt 0:01:44]} 18. Red1 {
[%emt 0:01:02]} Rfd8 {[%emt 0:00:30]} 19. a3 {[%emt 0:00:36]} Bd6 {[%emt 0:00:
20]} 20. Re1 {[%emt 0:00:17]} Bc7 {[%emt 0:00:33]} 21. d5 {[%emt 0:02:06]} Be5
{[%emt 0:01:29]} 22. dxe6 {[%emt 0:00:09]} Qxe6 {[%emt 0:00:01]} 23. Qc1 {
[%emt 0:00:14]} Qe8 {[%emt 0:01:10]} 24. Nf5 {[%emt 0:01:40]} Qf8 {[%emt 0:00:
18]} 25. Nxh6+ {[%emt 0:00:27]} Kh7 {[%emt 0:00:01]} 26. Nf5 {[%emt 0:00:46]}
Rd3 {[%emt 0:00:31]} 27. Bf1 {[%emt 0:01:52]} Rd7 {[%emt 0:01:15]} 28. Qc2 {
[%emt 0:00:23]} Qg8 {[%emt 0:00:11]} 29. Rad1 {[%emt 0:00:24]} Rad8 {[%emt 0:
00:02]} 30. Bg2 {[%emt 0:00:29]} Qg4 {[%emt 0:00:15]} 31. Rxd7 {[%emt 0:00:12]}
Rxd7 {[%emt 0:00:01]} 32. h3 {[%emt 0:00:04]} Qg8 {[%emt 0:00:24]} 33. f4 {
[%emt 0:00:09]} Bb8 {[%emt 0:00:09]} 34. e5 {[%emt 0:00:05]} Kg6 {[%emt 0:00:
17]} 35. Ne7+ {[%emt 0:00:03]} 1-0

[Event "16th EWICC 2015"]
[Site "Kutaisi"]
[Date "2015.06.02"]
[Round "6"]
[White "Khmiadashvili, Tamar"]
[Black "Arabidze, Meri"]
[Result "0-1"]
[ECO "B23"]
[WhiteElo "2043"]
[BlackElo "2403"]
[Annotator "Robot 11"]
[PlyCount "142"]
[EventDate "2015.??.??"]
[EventCountry "GEO"]
[TimeControl "900+10"]

1. e4 {[%emt 0:00:01]} c5 {[%emt 0:00:00]} 2. Nc3 {[%emt 0:00:05]} a6 {[%emt 0:
00:02]} 3. g3 {[%emt 0:00:02]} e6 {[%emt 0:00:05]} 4. Bg2 {[%emt 0:00:02]} Nc6
{[%emt 0:00:08]} 5. Nge2 {[%emt 0:00:06]} Nge7 {[%emt 0:00:09]} 6. O-O {[%emt
0:00:04]} h5 {[%emt 0:00:04]} 7. h4 {[%emt 0:00:05]} Ne5 {[%emt 0:00:10]} 8. d3
{[%emt 0:00:07]} N7c6 {[%emt 0:00:07]} 9. Bf4 {[%emt 0:00:28]} d6 {[%emt 0:00:
09]} 10. Qc1 {[%emt 0:00:30]} Be7 {[%emt 0:00:06]} 11. Nd1 {[%emt 0:00:14]} Nd4
{[%emt 0:00:46]} 12. Nxd4 {[%emt 0:00:16]} cxd4 {[%emt 0:00:01]} 13. Bxe5 {
[%emt 0:00:13]} dxe5 {[%emt 0:00:01]} 14. f4 {[%emt 0:00:07]} Bd6 {[%emt 0:01:
46]} 15. f5 {[%emt 0:00:19]} Qc7 {[%emt 0:00:19]} 16. Bh3 {[%emt 0:00:30]} exf5
{[%emt 0:00:10]} 17. Bxf5 {[%emt 0:00:01]} Bxf5 {[%emt 0:00:07]} 18. Rxf5 {
[%emt 0:00:03]} O-O-O {[%emt 0:00:23]} 19. Qd2 {[%emt 0:01:16]} Kb8 {[%emt 0:
00:05]} 20. Kg2 {[%emt 0:02:09]} Rdf8 {[%emt 0:00:26]} 21. c4 {[%emt 0:01:57]}
g6 {[%emt 0:00:25]} 22. Rf3 {[%emt 0:00:09]} f5 {[%emt 0:00:20]} 23. Nf2 {
[%emt 0:00:02]} f4 {[%emt 0:00:03]} 24. gxf4 {[%emt 0:00:15]} exf4 {[%emt 0:00:
14]} 25. Rg1 {[%emt 0:00:46]} Qe7 {[%emt 0:00:25]} 26. Kf1 {[%emt 0:00:20]}
Qxh4 {[%emt 0:01:38]} 27. Rxg6 {[%emt 0:00:03]} Qe7 {[%emt 0:00:01]} 28. Qa5 {
[%emt 0:00:29]} h4 {[%emt 0:03:59]} 29. Qd5 {[%emt 0:00:33]} Bc7 {[%emt 0:00:
05]} 30. a3 {[%emt 0:00:45]} Qh7 {[%emt 0:00:39]} 31. Rg4 {[%emt 0:01:27]} Rfg8
{[%emt 0:01:26]} 32. Rxg8+ {[%emt 0:00:30]} Rxg8 {[%emt 0:00:01]} 33. e5 {
[%emt 0:00:45]} Qg6 {[%emt 0:01:37]} 34. Ke2 {[%emt 0:01:07]} Re8 {[%emt 0:00:
18]} 35. Kd2 {[%emt 0:01:26]} Bxe5 {[%emt 0:00:05]} 36. Qe4 {[%emt 0:00:39]}
Qg8 {[%emt 0:01:36]} 37. Qf5 {[%emt 0:00:15]} Bc7 {[%emt 0:00:07]} 38. Qg4 {
[%emt 0:00:48]} Qxg4 {[%emt 0:01:08]} 39. Nxg4 {[%emt 0:00:01]} Rg8 {[%emt 0:
00:01]} 40. Nf2 {[%emt 0:00:33]} Rg3 {[%emt 0:00:11]} 41. Ke2 {[%emt 0:00:01]}
a5 {[%emt 0:00:17]} 42. b4 {[%emt 0:00:28]} a4 {[%emt 0:00:20]} 43. Nh3 {[%emt
0:00:25]} Rg4 {[%emt 0:00:18]} 44. Nf2 {[%emt 0:00:04]} Rg1 {[%emt 0:00:21]}
45. Nd1 {[%emt 0:00:23]} Ka7 {[%emt 0:00:13]} 46. Rh3 {[%emt 0:00:47]} Bd8 {
[%emt 0:00:01]} 47. Rf3 {[%emt 0:00:09]} Bg5 {[%emt 0:00:01]} 48. Nb2 {[%emt 0:
00:29]} h3 {[%emt 0:00:34]} 49. Rf2 {[%emt 0:00:15]} Bh4 {[%emt 0:00:10]} 50.
Rxf4 {[%emt 0:00:22]} Bg3 {[%emt 0:00:07]} 51. Rf5 {[%emt 0:00:25]} h2 {[%emt
0:00:17]} 52. Rh5 {[%emt 0:00:02]} h1=Q {[%emt 0:00:07]} 53. Rxh1 {[%emt 0:00:
01]} Rxh1 {[%emt 0:00:01]} 54. Nxa4 {[%emt 0:00:01]} Ra1 {[%emt 0:00:05]} 55.
b5 {[%emt 0:00:17]} Rxa3 {[%emt 0:00:05]} 56. Nc5 {[%emt 0:00:05]} b6 {[%emt 0:
00:16]} 57. Ne6 Be5 {[%emt 0:00:15]} 58. Nd8 {[%emt 0:00:07]} Bg7 {[%emt 0:00:
09]} 59. Nc6+ {[%emt 0:00:16]} Kb7 {[%emt 0:00:03]} 60. Nb4 {[%emt 0:00:14]}
Bf8 {[%emt 0:00:17]} 61. Nd5 {[%emt 0:00:02]} Bc5 {[%emt 0:00:10]} 62. Nf4 {
[%emt 0:00:10]} Kc7 {[%emt 0:00:06]} 63. Kf3 {[%emt 0:00:07]} Kd6 {[%emt 0:00:
07]} 64. Ke4 {[%emt 0:00:20]} Ra1 {[%emt 0:00:02]} 65. Nd5 {[%emt 0:00:13]}
Re1+ {[%emt 0:00:05]} 66. Kf3 {[%emt 0:00:02]} Ke5 {[%emt 0:00:04]} 67. Kf2 {
[%emt 0:00:03]} Re3 {[%emt 0:00:18]} 68. Kf1 {[%emt 0:00:31]} Rxd3 {[%emt 0:00:
06]} 69. Ke2 {[%emt 0:00:02]} Rh3 {[%emt 0:00:07]} 70. Kd2 {[%emt 0:00:06]} d3
{[%emt 0:00:05]} 71. Kc3 {[%emt 0:00:15]} Bd4+ {[%emt 0:00:18] Kxd4+} 0-1

[Event "16th EWICC 2015"]
[Site "Kutaisi"]
[Date "2015.06.02"]
[Round "6"]
[White "Khomeriki, Ketevan"]
[Black "Tereladze, Sopiko"]
[Result "1-0"]
[ECO "C57"]
[WhiteElo "1861"]
[BlackElo "2128"]
[Annotator "Robot 11"]
[PlyCount "135"]
[EventDate "2015.??.??"]
[EventCountry "GEO"]
[TimeControl "900+10"]

1. e4 {[%emt 0:00:02]} e5 {[%emt 0:00:07]} 2. Nf3 {[%emt 0:00:03]} Nc6 {[%emt
0:00:00]} 3. Bc4 {[%emt 0:00:01]} Nf6 {[%emt 0:00:03]} 4. Ng5 {[%emt 0:00:04]}
d5 {[%emt 0:00:05]} 5. exd5 {[%emt 0:00:03]} b5 {[%emt 0:00:00]} 6. Bxb5 {
[%emt 0:00:15]} Qxd5 {[%emt 0:00:02]} 7. Bxc6+ {[%emt 0:00:02]} Qxc6 {[%emt 0:
00:02]} 8. Qf3 {[%emt 0:00:12]} e4 {[%emt 0:00:11]} 9. Qc3 {[%emt 0:00:08]} Qd5
{[%emt 0:02:29]} 10. d3 {[%emt 0:00:51]} exd3 {[%emt 0:03:21]} 11. O-O {[%emt
0:00:49]} Bb7 {[%emt 0:01:11]} 12. Re1+ {[%emt 0:00:32]} Be7 {[%emt 0:00:18]}
13. Nf3 {[%emt 0:00:25]} dxc2 {[%emt 0:01:58]} 14. Qxc2 {[%emt 0:03:04]} Qd6 {
[%emt 0:00:19]} 15. b3 {[%emt 0:01:42]} O-O {[%emt 0:00:21]} 16. Ba3 {[%emt 0:
01:10]} c5 {[%emt 0:00:03]} 17. Nbd2 {[%emt 0:00:17]} Rfe8 {[%emt 0:00:19]} 18.
Rad1 {[%emt 0:01:00]} Rac8 {[%emt 0:00:22]} 19. Nc4 {[%emt 0:00:23]} Qf4 {
[%emt 0:00:14]} 20. Bc1 {[%emt 0:00:27]} Qg4 {[%emt 0:01:53]} 21. h3 {[%emt 0:
01:58]} Qh5 {[%emt 0:00:39]} 22. Re5 {[%emt 0:00:59]} Qg6 {[%emt 0:00:32]} 23.
Qe2 {[%emt 0:02:12]} Bxf3 {[%emt 0:00:51]} 24. Qxf3 {[%emt 0:00:03]} Bf8 {
[%emt 0:00:03]} 25. Rg5 {[%emt 0:00:36]} Qc2 {[%emt 0:00:06]} 26. Ne3 {[%emt 0:
00:20]} Rxe3 {[%emt 0:01:54]} 27. Bxe3 Qb2 28. Bc1 {[%emt 0:01:26]} Qc2 {[%emt
0:00:01]} 29. Re1 {[%emt 0:00:16]} Kh8 {[%emt 0:00:05]} 30. Qb7 {[%emt 0:00:11]
} Rd8 {[%emt 0:00:30]} 31. Qxf7 {[%emt 0:00:09]} Qc3 {[%emt 0:00:02]} 32. Rge5
{[%emt 0:00:08]} Qd4 {[%emt 0:00:33]} 33. Bg5 {[%emt 0:00:09]} Qd6 {[%emt 0:00:
30]} 34. Re6 {[%emt 0:00:16]} Qd7 {[%emt 0:00:17]} 35. Qxd7 {[%emt 0:00:06]}
Rxd7 {[%emt 0:00:00]} 36. Bxf6 {[%emt 0:00:03]} gxf6 {[%emt 0:00:01]} 37. Rxf6
{[%emt 0:00:03]} Kg7 {[%emt 0:00:02]} 38. Rfe6 {[%emt 0:00:08]} Rd2 {[%emt 0:
00:05]} 39. Ra6 {[%emt 0:00:09]} Rd7 {[%emt 0:00:13]} 40. g4 {[%emt 0:00:08]}
Be7 {[%emt 0:00:03]} 41. Kg2 {[%emt 0:00:08]} Bf6 {[%emt 0:00:01]} 42. Ree6 {
[%emt 0:00:05]} Bd4 {[%emt 0:00:02]} 43. Red6 {[%emt 0:00:05]} Rf7 {[%emt 0:00:
02]} 44. f3 {[%emt 0:00:02]} Re7 {[%emt 0:00:01]} 45. Re6 {[%emt 0:00:02]} Rc7
{[%emt 0:00:03]} 46. f4 {[%emt 0:00:03]} Rd7 {[%emt 0:00:05]} 47. Kf3 {[%emt 0:
00:04]} Bb2 {[%emt 0:00:06]} 48. Red6 {[%emt 0:00:03]} Re7 {[%emt 0:00:03]} 49.
g5 {[%emt 0:00:16]} Bd4 {[%emt 0:00:01]} 50. Re6 {[%emt 0:00:04]} Rf7 {[%emt 0:
00:05]} 51. Kg4 {[%emt 0:00:07]} Rc7 {[%emt 0:00:13]} 52. f5 {[%emt 0:00:04]}
Rb7 {[%emt 0:00:11]} 53. h4 {[%emt 0:00:03]} Kf8 {[%emt 0:00:01]} 54. h5 {
[%emt 0:00:07]} Rb4 {[%emt 0:00:16]} 55. Re4 {[%emt 0:00:18]} Rb7 {[%emt 0:00:
05]} 56. g6 {[%emt 0:00:06]} hxg6 {[%emt 0:00:03]} 57. fxg6 {[%emt 0:00:03]}
Kg7 {[%emt 0:00:01]} 58. Rae6 {[%emt 0:00:06]} Bf6 {[%emt 0:00:04]} 59. Kf5 {
[%emt 0:00:21]} Bd8 {[%emt 0:00:06]} 60. Re8 {[%emt 0:00:13]} Rd7 {[%emt 0:00:
01]} 61. Rxd8 {[%emt 0:00:23]} Rxd8 {[%emt 0:00:01]} 62. Re7+ {[%emt 0:00:02]}
Kg8 {[%emt 0:00:01]} 63. h6 {[%emt 0:00:05]} Rc8 {[%emt 0:00:04]} 64. Rxa7 {
[%emt 0:00:08]} c4 {[%emt 0:00:02]} 65. bxc4 {[%emt 0:00:02]} Rc5+ {[%emt 0:00:
00]} 66. Ke6 Rc6+ 67. Kd5 {[%emt 0:00:11]} Rxg6 {[%emt 0:00:01]} 68. Rg7+ {
[%emt 0:00:03]} 1-0

[Event "16th EWICC 2015"]
[Site "Kutaisi"]
[Date "2015.06.02"]
[Round "6"]
[White "Kosteniuk, Alexandra"]
[Black "Charochkina, Daria"]
[Result "1-0"]
[ECO "B12"]
[WhiteElo "2530"]
[BlackElo "2391"]
[Annotator "Robot 11"]
[PlyCount "81"]
[EventDate "2015.??.??"]
[EventCountry "GEO"]
[TimeControl "900+10"]

1. e4 {[%emt 0:00:02]} c6 {[%emt 0:00:01]} 2. d4 {[%emt 0:00:01]} d5 {[%emt 0:
00:01]} 3. e5 {[%emt 0:00:01]} Bf5 {[%emt 0:00:03]} 4. Nf3 {[%emt 0:00:01]} e6
{[%emt 0:00:01]} 5. Be2 {[%emt 0:00:02]} Nd7 {[%emt 0:00:02]} 6. O-O {[%emt 0:
00:02]} Ne7 {[%emt 0:00:02]} 7. Nbd2 {[%emt 0:00:04]} h6 {[%emt 0:00:03]} 8.
Nb3 {[%emt 0:00:04]} Bg6 {[%emt 0:00:04]} 9. a4 {[%emt 0:00:04]} Nf5 {[%emt 0:
00:03]} 10. a5 {[%emt 0:00:02]} Rc8 {[%emt 0:00:04]} 11. a6 {[%emt 0:00:17]} b6
{[%emt 0:00:02]} 12. c4 {[%emt 0:00:02]} Be7 {[%emt 0:00:05]} 13. Bf4 {[%emt 0:
00:16]} O-O {[%emt 0:00:39]} 14. Qd2 {[%emt 0:00:17]} Bh5 {[%emt 0:02:27]} 15.
cxd5 {[%emt 0:00:49]} cxd5 {[%emt 0:00:06]} 16. Rfc1 {[%emt 0:02:31]} Nb8 {
[%emt 0:00:45]} 17. h3 {[%emt 0:01:21]} Bxf3 {[%emt 0:03:46]} 18. Bxf3 {[%emt
0:00:01]} Rxc1+ {[%emt 0:00:06]} 19. Nxc1 {[%emt 0:00:01]} Nc6 {[%emt 0:00:03]}
20. Ne2 {[%emt 0:00:27]} f6 {[%emt 0:01:31]} 21. Rc1 {[%emt 0:03:57]} Na5 {
[%emt 0:01:52]} 22. exf6 {[%emt 0:01:03]} Bxf6 {[%emt 0:00:03]} 23. Qd3 {[%emt
0:00:53]} Nc4 {[%emt 0:02:14]} 24. b3 {[%emt 0:00:01]} Ncd6 {[%emt 0:00:01]}
25. Bg4 {[%emt 0:00:13]} Qd7 {[%emt 0:04:35]} 26. Bxf5 {[%emt 0:00:03]} exf5 {
[%emt 0:00:17]} 27. Be5 {[%emt 0:00:01]} Bd8 {[%emt 0:00:08]} 28. Nc3 {[%emt 0:
01:15]} Ne4 {[%emt 0:00:04]} 29. Qb5 {[%emt 0:00:05]} Qc8 {[%emt 0:00:20]} 30.
Qxd5+ {[%emt 0:00:10]} Kh7 {[%emt 0:00:02]} 31. Qb7 {[%emt 0:01:14]} Bf6 {
[%emt 0:00:22]} 32. Bxf6 {[%emt 0:01:40]} Nxf6 {[%emt 0:00:02]} 33. Qxa7 {
[%emt 0:00:24]} Nd5 {[%emt 0:00:03]} 34. Ne2 {[%emt 0:00:05]} Qe6 {[%emt 0:00:
01]} 35. Qb7 {[%emt 0:00:21]} Qxe2 {[%emt 0:00:28]} 36. Qxd5 {[%emt 0:00:02]}
Qxa6 {[%emt 0:00:01]} 37. Rc7 {[%emt 0:00:14]} Rf6 {[%emt 0:00:17]} 38. Qd7 {
[%emt 0:00:37]} Rg6 {[%emt 0:00:04]} 39. Qxf5 {[%emt 0:00:08]} Qa1+ {[%emt 0:
00:01]} 40. Kh2 {[%emt 0:00:01]} Qxd4 {[%emt 0:00:02]} 41. Rc6 {[%emt 0:00:03]}
1-0

[Event "16th EWICC 2015"]
[Site "Kutaisi"]
[Date "2015.06.02"]
[Round "6"]
[White "Mammadova, Narmin"]
[Black "Gaprindashvili, Nona"]
[Result "1/2-1/2"]
[ECO "B00"]
[WhiteElo "2117"]
[BlackElo "2302"]
[Annotator "Robot 11"]
[PlyCount "91"]
[EventDate "2015.??.??"]
[EventCountry "GEO"]
[TimeControl "900+10"]

1. e4 {[%emt 0:00:02]} b6 {[%emt 0:00:01]} 2. d4 {[%emt 0:00:05]} Bb7 {[%emt 0:
00:00]} 3. Bd3 {[%emt 0:00:07]} e6 {[%emt 0:00:02]} 4. Nf3 {[%emt 0:00:06]} d6
{[%emt 0:00:06]} 5. O-O {[%emt 0:00:16]} c5 {[%emt 0:00:02]} 6. c3 {[%emt 0:00:
02]} g6 {[%emt 0:00:05]} 7. Bg5 {[%emt 0:00:25]} Qc8 {[%emt 0:00:16]} 8. Nbd2 {
[%emt 0:00:07]} h6 {[%emt 0:00:02]} 9. Be3 {[%emt 0:00:21]} Nd7 {[%emt 0:00:15]
} 10. Rc1 {[%emt 0:00:31]} Ngf6 {[%emt 0:00:15]} 11. Bb1 {[%emt 0:00:18]} g5 {
[%emt 0:01:42]} 12. Ne1 {[%emt 0:02:30]} Be7 {[%emt 0:00:36]} 13. f4 {[%emt 0:
00:11]} Rg8 {[%emt 0:01:42]} 14. f5 {[%emt 0:02:59]} e5 {[%emt 0:00:15]} 15. d5
{[%emt 0:00:44]} b5 {[%emt 0:00:36]} 16. c4 {[%emt 0:00:15]} b4 {[%emt 0:00:18]
} 17. a3 {[%emt 0:00:25]} a5 {[%emt 0:00:03]} 18. Nd3 {[%emt 0:00:03]} Qc7 {
[%emt 0:00:17]} 19. Bc2 {[%emt 0:00:31]} Nb6 {[%emt 0:00:13]} 20. Ra1 {[%emt 0:
00:41]} Kd7 {[%emt 0:00:13]} 21. axb4 {[%emt 0:00:38]} axb4 {[%emt 0:00:05]}
22. Qe2 {[%emt 0:00:24]} Rxa1 {[%emt 0:00:06]} 23. Rxa1 {[%emt 0:00:01]} Ra8 {
[%emt 0:00:03]} 24. Qd1 {[%emt 0:00:35]} Rxa1 {[%emt 0:00:20]} 25. Qxa1 {[%emt
0:00:01]} Qb8 {[%emt 0:00:28]} 26. Qa5 {[%emt 0:00:19]} Qc7 {[%emt 0:01:05]}
27. Qb5+ {[%emt 0:02:34]} Kc8 {[%emt 0:00:24]} 28. h3 {[%emt 0:00:27]} Nbd7 {
[%emt 0:00:41]} 29. Kh2 {[%emt 0:01:43]} Bd8 {[%emt 0:01:12]} 30. g4 {[%emt 0:
01:08]} Qb6 {[%emt 0:01:38]} 31. Qxb6 {[%emt 0:00:26]} Bxb6 {[%emt 0:00:19]}
32. Kg3 {[%emt 0:00:18]} Bd8 {[%emt 0:00:03]} 33. b3 {[%emt 0:00:06]} Ba6 {
[%emt 0:02:35]} 34. Ne1 {[%emt 0:00:12]} Nf8 {[%emt 0:01:24]} 35. Nef3 {[%emt
0:00:38]} N6h7 {[%emt 0:01:39]} 36. Bb1 {[%emt 0:00:34]} Nd7 {[%emt 0:00:24]}
37. Bc2 {[%emt 0:00:04]} Be7 {[%emt 0:00:06]} 38. Bb1 {[%emt 0:00:07]} Kc7 {
[%emt 0:00:08]} 39. Bc2 {[%emt 0:00:04]} Nb6 {[%emt 0:00:24]} 40. Kg2 {[%emt 0:
00:24]} Bc8 {[%emt 0:00:06]} 41. Kg3 {[%emt 0:00:01]} Bd7 {[%emt 0:00:02]} 42.
Kg2 {[%emt 0:00:09]} Be8 {[%emt 0:00:02]} 43. Kg3 {[%emt 0:00:13]} Nd7 {[%emt
0:00:04]} 44. Kg2 {[%emt 0:00:08]} Ndf6 {[%emt 0:00:47]} 45. Kg3 {[%emt 0:00:
09]} Ng8 {[%emt 0:00:04]} 46. Kg2 {[%emt 0:00:19]} 1/2-1/2

[Event "16th EWICC 2015"]
[Site "Kutaisi"]
[Date "2015.06.02"]
[Round "6"]
[White "Mammadzada, Gunay"]
[Black "Arakhamia-Grant, Ketevan"]
[Result "0-1"]
[ECO "B07"]
[WhiteElo "2336"]
[BlackElo "2393"]
[Annotator "Robot 11"]
[PlyCount "32"]
[EventDate "2015.??.??"]
[EventCountry "GEO"]
[TimeControl "900+10"]

1. e4 {[%emt 0:00:03]} d6 {[%emt 0:00:16]} 2. d4 {[%emt 0:00:02]} Nf6 {[%emt 0:
00:03]} 3. Nc3 {[%emt 0:00:01]} Nbd7 {[%emt 0:00:25]} 4. Nf3 {[%emt 0:00:29]}
e5 {[%emt 0:00:03]} 5. Bc4 {[%emt 0:00:03]} Be7 {[%emt 0:00:03]} 6. O-O {[%emt
0:00:09]} O-O {[%emt 0:00:05]} 7. Re1 {[%emt 0:00:10]} c6 {[%emt 0:00:25]} 8.
a4 {[%emt 0:00:02]} exd4 {[%emt 0:00:11]} 9. Nxd4 {[%emt 0:00:05]} Ne5 {[%emt
0:00:03]} 10. Bf1 {[%emt 0:00:39]} Re8 {[%emt 0:00:09]} 11. h3 {[%emt 0:00:36]}
Bf8 {[%emt 0:00:24]} 12. Be3 {[%emt 0:00:07]} Ng6 {[%emt 0:00:59]} 13. Bc4 {
[%emt 0:00:27]} Qa5 {[%emt 0:03:11]} 14. Bd2 {[%emt 0:04:00]} Qc5 {[%emt 0:00:
56]} 15. a5 {[%emt 0:03:10]} Qxc4 {[%emt 0:01:39]} 16. Ra4 {[%emt 0:00:02]} Qc5
{[%emt 0:00:21]} 0-1

[Event "16th EWICC 2015"]
[Site "Kutaisi"]
[Date "2015.06.02"]
[Round "6"]
[White "Nikoladze, Sopio"]
[Black "Khurtsidze, Nino"]
[Result "1-0"]
[ECO "A46"]
[WhiteElo "2155"]
[BlackElo "2451"]
[Annotator "Robot 11"]
[PlyCount "101"]
[EventDate "2015.??.??"]
[EventCountry "GEO"]
[TimeControl "900+10"]

1. d4 {[%emt 0:00:01]} Nf6 {[%emt 0:00:01]} 2. Nf3 {[%emt 0:00:01]} e6 {[%emt
0:00:02]} 3. e3 {[%emt 0:00:02]} c5 {[%emt 0:00:01]} 4. Bd3 {[%emt 0:00:02]} b6
{[%emt 0:00:07]} 5. c4 {[%emt 0:00:06]} Bb7 {[%emt 0:00:02]} 6. Nc3 {[%emt 0:
00:01]} Be7 {[%emt 0:00:11]} 7. O-O {[%emt 0:00:04]} O-O {[%emt 0:00:01]} 8. d5
{[%emt 0:00:31]} exd5 {[%emt 0:00:16]} 9. cxd5 {[%emt 0:00:01]} d6 {[%emt 0:00:
06]} 10. e4 {[%emt 0:00:12]} Na6 {[%emt 0:00:12]} 11. h3 {[%emt 0:00:27]} Nb4 {
[%emt 0:00:19]} 12. Bb1 {[%emt 0:00:04]} c4 {[%emt 0:00:32]} 13. Qa4 {[%emt 0:
01:12]} a5 {[%emt 0:01:22]} 14. Be3 {[%emt 0:01:07]} Nd7 {[%emt 0:01:02]} 15.
a3 {[%emt 0:00:16]} Nc5 {[%emt 0:00:09]} 16. Bxc5 {[%emt 0:01:10]} bxc5 {[%emt
0:00:07]} 17. Nd2 {[%emt 0:02:03]} Ba6 {[%emt 0:01:55]} 18. axb4 {[%emt 0:02:
10]} axb4 {[%emt 0:00:10]} 19. Qc2 {[%emt 0:00:35]} bxc3 {[%emt 0:00:20]} 20.
bxc3 {[%emt 0:00:03]} g6 {[%emt 0:00:20]} 21. Ba2 {[%emt 0:00:24]} Bg5 {[%emt
0:01:59]} 22. f4 {[%emt 0:00:26]} Bh6 {[%emt 0:00:16]} 23. Rad1 {[%emt 0:01:15]
} Qh4 {[%emt 0:00:18]} 24. Bxc4 {[%emt 0:02:03]} Bxf4 {[%emt 0:01:20]} 25. Qd3
{[%emt 0:00:29]} Bc8 {[%emt 0:00:51]} 26. Rf3 {[%emt 0:00:46]} Bd7 {[%emt 0:01:
06]} 27. g3 {[%emt 0:00:30]} Qxh3 {[%emt 0:00:23]} 28. gxf4 {[%emt 0:00:07]}
Qg4+ {[%emt 0:00:02]} 29. Kf1 {[%emt 0:00:47]} Qh5 {[%emt 0:00:18]} 30. Re1 {
[%emt 0:00:18]} Bg4 {[%emt 0:01:38]} 31. Rg3 {[%emt 0:00:13]} Qh1+ {[%emt 0:00:
06]} 32. Rg1 {[%emt 0:00:27]} Bh3+ {[%emt 0:00:02]} 33. Kf2 {[%emt 0:00:15]}
Qh2+ {[%emt 0:00:09]} 34. Ke3 {[%emt 0:00:17]} Bg2 {[%emt 0:00:08]} 35. Qe2 {
[%emt 0:00:16]} Qh3+ {[%emt 0:01:38]} 36. Kf2 {[%emt 0:00:25]} Ra3 {[%emt 0:01:
49]} 37. Nb1 {[%emt 0:00:45]} Ra1 {[%emt 0:00:57]} 38. Rxg2 {[%emt 0:00:02]}
Qh4+ {[%emt 0:00:01]} 39. Ke3 {[%emt 0:00:10]} Re8 {[%emt 0:00:04]} 40. Qf2 {
[%emt 0:00:22]} Qe7 {[%emt 0:00:17]} 41. Kd3 {[%emt 0:00:04]} Qb7 {[%emt 0:00:
04]} 42. Qc2 {[%emt 0:00:09]} Rb8 {[%emt 0:00:28]} 43. Rgg1 {[%emt 0:00:06]}
Qe7 {[%emt 0:00:06]} 44. Nd2 {[%emt 0:00:07]} Ra3 {[%emt 0:00:04]} 45. Rh1 {
[%emt 0:00:08]} Qf6 {[%emt 0:00:02]} 46. Ref1 {[%emt 0:00:07]} Qd4+ {[%emt 0:
00:11]} 47. Ke2 {[%emt 0:00:02]} Rxc3 {[%emt 0:00:02]} 48. Qa2 {[%emt 0:00:17]}
Re3+ {[%emt 0:00:13]} 49. Kd1 {[%emt 0:00:06]} Rb2 {[%emt 0:00:08]} 50. Qa8+ {
[%emt 0:00:11]} Kg7 {[%emt 0:00:01]} 51. Rxh7+ {[%emt 0:00:03]} 1-0